fUST/lending_fUST_20260608
["ID","MTS","AMOUNT","RATE_DAILY","PERIOD"]
[424446219,1780908643000,-527.37060269,0.000116,2]
[424446221,1780908643000,-3844.50462851,0.000116,2]
[424446224,1780908643000,-1290.25882907,0.00011717,2]
[424446225,1780908643000,-1290.25882907,0.00011717,2]
[424446223,1780908643000,-1290.25882907,0.00011717,2]
[424446226,1780908643000,-1290.25882907,0.00011717,2]
[424446229,1780908643000,-1290.25882907,0.00011717,2]
[424446232,1780908643000,-1290.25882907,0.00011717,2]
[424446220,1780908643000,-628.1247688,0.000116,2]
[424446227,1780908643000,-1290.25882907,0.00011717,2]
[424446231,1780908643000,-1290.25882907,0.00011717,2]
[424446236,1780908643000,-798.59260999,0.00011717,2]
[424446234,1780908643000,-1290.25882907,0.00011717,2]
[424446233,1780908643000,-1290.25882907,0.00011717,2]
[424446235,1780908643000,-1290.25882907,0.00011717,2]
[424446237,1780908643000,-491.66621908,0.00011717,2]
[424446238,1780908643000,-3085.24632627,0.000149,2]
[424446240,1780908643000,-34027.94280443,0.000149,2]
[424446239,1780908643000,-766.0873,0.000149,2]
[424446230,1780908643000,-1290.25882907,0.00011717,2]
[424446244,1780908646000,-13270.57507934,0.000149,2]
[424446246,1780908646000,-77848.71853452,0.000149,2]
[424446245,1780908646000,-29107.67765022,0.000149,2]
[424446248,1780908648000,-1353.5865512,0.000149,2]
[424446249,1780908648000,-473.74218606,0.000149,2]
[424446247,1780908648000,-156.0,0.000148,2]
[424446276,1780909108000,-151.0,9.89e-05,2]
[424446279,1780909161000,-460.96818549,0.00010093,2]
[424446280,1780909174000,-39.03181451,0.00010093,2]
[424446285,1780909324000,-151.0,9.789e-05,2]
[424446298,1780909431000,-500.0,0.00010093,2]
[424446293,1780909431000,-1222.83346672,0.00010091,2]
[424446294,1780909431000,-300.0,0.00010092,2]
[424446297,1780909431000,-500.0,0.00010093,2]
[424446299,1780909431000,-500.0,0.00010093,2]
[424446295,1780909431000,-243.0,0.00010092,2]
[424446300,1780909431000,-238.07140021,0.00010093,2]
[424446301,1780909431000,-5000.0,0.00010093,2]
[424446302,1780909431000,-1035.12694758,0.00010093,2]
[424446296,1780909431000,-460.96818549,0.00010092,2]
[424446305,1780909433000,-1035.12694758,0.00010404,2]
[424446303,1780909433000,-3964.87305242,0.00010093,2]
[424446304,1780909433000,-5000.0,0.00010093,2]
[424446312,1780909434000,-300.0,0.0001061,2]
[424446310,1780909434000,-300.0,0.0001061,2]
[424446311,1780909434000,-300.0,0.0001061,2]
[424446309,1780909434000,-300.0,0.0001061,2]
[424446308,1780909434000,-300.0,0.0001061,2]
[424446306,1780909434000,-4457.79741402,0.00010404,2]
[424446314,1780909434000,-300.0,0.0001061,2]
[424446307,1780909434000,-172.95826501,0.0001051,2]
[424446313,1780909434000,-300.0,0.0001061,2]
[424446323,1780909434000,-600.0,0.0001061,2]
[424446316,1780909434000,-300.0,0.0001061,2]
[424446317,1780909434000,-300.0,0.0001061,2]
[424446318,1780909434000,-300.0,0.0001061,2]
[424446319,1780909434000,-300.0,0.0001061,2]
[424446322,1780909434000,-300.0,0.0001061,2]
[424446320,1780909434000,-300.0,0.0001061,2]
[424446321,1780909434000,-300.0,0.0001061,2]
[424446324,1780909434000,-269.24432097,0.00010959,2]
[424446315,1780909434000,-300.0,0.0001061,2]
[424446328,1780909435000,-152.0,0.00011749,2]
[424446327,1780909435000,-720.0,0.00011671,2]
[424446326,1780909435000,-300.0,0.000111,2]
[424446325,1780909435000,-1380.75567903,0.00010959,2]
[424446329,1780909436000,-7447.24432097,0.00012282,2]
[424446331,1780909436000,-1210.60513206,0.00010091,2]
[424446330,1780909436000,-1210.60513206,0.00010091,2]
[424446338,1780909437000,-1210.60513206,0.00010091,2]
[424446335,1780909437000,-1210.60513206,0.00010091,2]
[424446337,1780909437000,-1525.76407558,0.00012282,2]
[424446336,1780909437000,-1210.60513206,0.00010091,2]
[424446334,1780909437000,-1210.60513206,0.00010091,2]
[424446333,1780909437000,-1210.60513206,0.00010091,2]
[424446332,1780909437000,-1210.60513206,0.00010091,2]
[424446341,1780909438000,-1210.60513206,0.00010091,2]
[424446339,1780909438000,-1210.60513206,0.00010091,2]
[424446340,1780909438000,-1210.60513206,0.00010091,2]
[424446346,1780909438000,-315.15894352,0.000103,2]
[424446345,1780909438000,-1210.60513206,0.00010091,2]
[424446343,1780909438000,-1210.60513206,0.00010091,2]
[424446344,1780909438000,-1210.60513206,0.00010091,2]
[424446342,1780909438000,-1210.60513206,0.00010091,2]
[424446349,1780909439000,-4104.55381146,0.00012282,2]
[424446348,1780909439000,-4684.84105648,0.000103,2]
[424446347,1780909439000,-1210.60513206,0.00010091,2]
[424446350,1780909441000,-10000.0,0.00012282,2]
[424446351,1780909442000,-6327.82003929,0.00012282,2]
[424446353,1780909442000,-2435.8690669,0.00012606,2]
[424446354,1780909442000,-733.28406221,0.00012839,2]
[424446352,1780909442000,-503.0268316,0.00012481,2]
[424446359,1780909460000,-887.77709684,0.00010091,2]
[424446355,1780909460000,-887.77709684,0.00010091,2]
[424446357,1780909460000,-887.77709684,0.00010091,2]
[424446356,1780909460000,-887.77709684,0.00010091,2]
[424446360,1780909460000,-887.77709684,0.00010091,2]
[424446358,1780909460000,-887.77709684,0.00010091,2]
[424446362,1780909460000,-887.77709684,0.00010091,2]
[424446363,1780909460000,-887.77709684,0.00010091,2]
[424446364,1780909460000,-887.77709684,0.00010091,2]
[424446366,1780909460000,-234.45193476,0.00012038,2]
[424446361,1780909460000,-887.77709684,0.00010091,2]
[424446365,1780909460000,-887.77709684,0.00010091,2]
[424446370,1780909461000,-103.73599697,0.00012843,2]
[424446368,1780909461000,-5000.0,0.0001216,2]
[424446369,1780909461000,-130.71593779,0.00012839,2]
[424446367,1780909461000,-4765.54806524,0.00012038,2]
[424446371,1780909463000,-1238.88350466,0.00011918,2]
[424446372,1780909463000,-273.36803781,0.00012843,2]
[424446373,1780909557000,-2920.0,0.00012769,2]
[424446386,1780909832000,-919.25283027,0.00012514,2]
[424446385,1780909832000,-426.01759708,0.00012514,2]
[424446388,1780909832000,-919.25283027,0.00012514,2]
[424446383,1780909832000,-305.668248,0.00012514,2]
[424446384,1780909832000,-613.58458227,0.00012514,2]
[424446389,1780909832000,-3568.79971495,0.00012515,2]
[424446391,1780909832000,-25.5212572,0.00012641,2]
[424446387,1780909832000,-919.25283027,0.00012514,2]
[424446393,1780909832000,-4974.4787428,0.00012641,2]
[424446394,1780909832000,-377.10403478,0.000131,7]
[424446392,1780909832000,-919.25283027,0.00012514,2]
[424446395,1780909832000,-307.98885326,0.00013485,14]
[424446390,1780909832000,-1431.20028505,0.00012515,2]
[424446505,1780909839000,-500.0,0.00013698,2]
[424446504,1780909839000,-518.20445619,0.00013698,2]
[424446508,1780909839000,-258.5862613,0.00013699,2]
[424446503,1780909839000,-447.10162767,0.00013698,2]
[424446506,1780909839000,-500.0,0.00013698,2]
[424446507,1780909839000,-500.0,0.00013698,2]
[424446502,1780909839000,-500.0,0.00013698,2]
[424446499,1780909839000,-69.11518152,0.00013485,14]
[424446501,1780909839000,-500.0,0.00013698,2]
[424446498,1780909839000,-919.25283027,0.00012514,2]
[424446497,1780909839000,-519.67182633,0.00012514,2]
[424446496,1780909839000,-399.58100394,0.00012514,2]
[424446494,1780909839000,-919.25283027,0.00012514,2]
[424446495,1780909839000,-919.25283027,0.00012514,2]
[424446493,1780909839000,-919.25283027,0.00012514,2]
[424446492,1780909839000,-919.25283027,0.00012514,2]
[424446491,1780909839000,-5000.0,0.00012389,2]
[424446509,1780909839000,-1000.0,0.00013699,2]
[424446500,1780909839000,-500.0,0.00013698,2]
[424446511,1780909839000,-300.0,0.00013971,2]
[424446526,1780909839000,-6643.38286455,0.00014038,2]
[424446513,1780909839000,-300.0,0.00013971,2]
[424446510,1780909839000,-300.0,0.00013971,2]
[424446531,1780909839000,-87113.72867521,0.00014137,2]
[424446525,1780909839000,-172.95826501,0.0001399,2]
[424446529,1780909839000,-33637.62016062,0.00014137,2]
[424446528,1780909839000,-151.0,0.0001409,2]
[424446527,1780909839000,-151.0,0.0001409,2]
[424446530,1780909839000,-1129.39074962,0.00014137,2]
[424446524,1780909839000,-300.0,0.00013971,2]
[424446523,1780909839000,-300.0,0.00013971,2]
[424446533,1780909839000,-7287.40311189,0.00014137,2]
[424446522,1780909839000,-300.0,0.00013971,2]
[424446520,1780909839000,-300.0,0.00013971,2]
[424446517,1780909839000,-300.0,0.00013971,2]
[424446514,1780909839000,-300.0,0.00013971,2]
[424446519,1780909839000,-300.0,0.00013971,2]
[424446518,1780909839000,-300.0,0.00013971,2]
[424446515,1780909839000,-300.0,0.00013971,2]
[424446512,1780909839000,-300.0,0.00013971,2]
[424446516,1780909839000,-300.0,0.00013971,2]
[424446521,1780909839000,-300.0,0.00013971,2]
[424446575,1780909842000,-4848.46762484,0.00014137,2]
[424446580,1780909843000,-4133.93835324,0.00014137,2]
[424446581,1780909843000,-2626.99187919,0.00014137,2]
[424446585,1780909846000,-500.0,0.00012513,2]
[424446584,1780909846000,-513.59876352,0.00012513,2]
[424446597,1780909846000,-500.0,0.00012513,2]
[424446586,1780909846000,-500.0,0.00012513,2]
[424446587,1780909846000,-500.61635798,0.00012513,2]
[424446588,1780909846000,-551.21027201,0.00012513,2]
[424446589,1780909846000,-450.31998536,0.00012513,2]
[424446598,1780909846000,-500.0,0.00012513,2]
[424446591,1780909846000,-500.0,0.00012513,2]
[424446592,1780909846000,-500.0,0.00012513,2]
[424446590,1780909846000,-500.0,0.00012513,2]
[424446600,1780909846000,-500.0,0.00012513,2]
[424446593,1780909846000,-500.84930981,0.00012513,2]
[424446596,1780909846000,-500.0,0.00012513,2]
[424446594,1780909846000,-387.60077339,0.00012513,2]
[424446599,1780909846000,-500.0,0.00012513,2]
[424446601,1780909846000,-500.0,0.00012513,2]
[424446602,1780909846000,-500.0,0.00012513,2]
[424446604,1780909846000,-38785.90123791,0.00014137,2]
[424446606,1780909846000,-8793.03432394,0.00014137,2]
[424446605,1780909846000,-3845.31921432,0.00014137,2]
[424446603,1780909846000,-500.0,0.00012513,2]
[424446595,1780909846000,-500.0,0.00012513,2]
[424446608,1780910049000,64088.699999,0.00024642,120]
[424446610,1780910302000,-3792.4938908,9.89e-05,2]
[424446611,1780910315000,-965.90636654,9.89e-05,2]
[424446618,1780910530000,1829.007,7.6e-05,2]
[424446616,1780910530000,433.07578602,7.6e-05,2]
[424446617,1780910530000,1773.489,7.6e-05,2]
[424446619,1780910530000,12625.46449677,7.6e-05,2]
[424446625,1780910869000,-151.0,0.00010091,7]
[424446626,1780910871000,-151.0,0.00010091,7]
[424446627,1780910910000,-193.12409552,0.00010091,7]
[424446636,1780910961000,-3341.09884215,9.596e-05,2]
[424446702,1780911032000,-383.36888726,9.499e-05,2]
[424446708,1780911032000,-379.02743576,9.5e-05,2]
[424446699,1780911032000,-163.78693637,9.499e-05,2]
[424446683,1780911032000,-2881.36439249,9.5e-05,2]
[424446690,1780911032000,-433.45811007,9.499e-05,2]
[424446681,1780911032000,-763.77151649,9.5e-05,2]
[424446705,1780911032000,-525.36243587,9.5e-05,2]
[424446772,1780911038000,-487.10303339,0.00010289,2]
[424446783,1780911038000,-826.12076769,0.00010289,2]
[424446777,1780911038000,-826.12076769,0.00010289,2]
[424446781,1780911038000,-826.12076769,0.00010289,2]
[424446767,1780911038000,-370.51813261,9.596e-05,2]
[424446769,1780911038000,-80.87691604,9.596e-05,2]
[424446765,1780911038000,-450.47421939,9.5e-05,2]
[424446779,1780911038000,-826.12076769,0.00010289,2]
[424446770,1780911038000,-826.12076769,0.00010289,2]
[424446774,1780911038000,-826.12076769,0.00010289,2]
[424446788,1780911038000,-783.24803077,0.00010289,2]
[424446785,1780911038000,-42.87273692,0.00010289,2]
[424446797,1780911038000,-826.12076769,0.00010289,2]
[424446776,1780911038000,-826.12076769,0.00010289,2]
[424446803,1780911038000,-826.12076769,0.00010289,2]
[424446801,1780911038000,-826.12076769,0.00010289,2]
[424446804,1780911038000,-826.12076769,0.00010289,2]
[424446793,1780911038000,-826.12076769,0.00010289,2]
[424446795,1780911038000,-826.12076769,0.00010289,2]
[424446791,1780911038000,-826.12076769,0.00010289,2]
[424446789,1780911038000,-826.12076769,0.00010289,2]
[424446799,1780911038000,-826.12076769,0.00010289,2]
[424446817,1780911039000,-300.0,0.00010292,2]
[424446844,1780911039000,-3238.5040501,0.00010959,2]
[424446842,1780911039000,-495.12409552,0.00010898,7]
[424446831,1780911039000,-300.0,0.00010292,2]
[424446819,1780911039000,-300.0,0.00010292,2]
[424446821,1780911039000,-300.0,0.00010292,2]
[424446818,1780911039000,-300.0,0.00010292,2]
[424446816,1780911039000,-300.0,0.00010292,2]
[424446846,1780911039000,-495.12409556,0.00011302,7]
[424446827,1780911039000,-300.0,0.00010292,2]
[424446825,1780911039000,-300.0,0.00010292,2]
[424446813,1780911039000,-300.0,0.00010292,2]
[424446811,1780911039000,-300.0,0.00010292,2]
[424446807,1780911039000,-300.0,0.00010292,2]
[424446806,1780911039000,-300.0,0.00010292,2]
[424446809,1780911039000,-300.0,0.00010292,2]
[424446814,1780911039000,-300.0,0.00010292,2]
[424446837,1780911039000,-600.0,0.00010497,2]
[424446829,1780911039000,-300.0,0.00010292,2]
[424446833,1780911039000,-280.36611737,0.00010292,2]
[424446870,1780911039000,-619.3326771,0.00013734,2]
[424446873,1780911039000,-5979.04457814,0.00013744,2]
[424446875,1780911039000,-36447.01945836,0.00013754,2]
[424446878,1780911039000,-580.46239662,0.00013754,2]
[424446865,1780911039000,-1000.0,0.00013699,2]
[424446863,1780911039000,-185597.39693711,0.00013634,2]
[424446861,1780911039000,-176.385527,0.00013597,2]
[424446860,1780911039000,-500.0,0.00013341,2]
[424446868,1780911039000,-5919.2975457,0.00013734,2]
[424446856,1780911039000,-500.0,0.00012674,2]
[424446854,1780911039000,-351.61576936,0.00012303,2]
[424446852,1780911039000,-24966.98882358,0.00012,2]
[424446872,1780911039000,-341.1899786,0.00013734,2]
[424446850,1780911039000,-720.0,0.00011547,2]
[424446840,1780911039000,-150.5994006,0.00010596,2]
[424446839,1780911039000,-495.12409552,0.00010596,7]
[424446835,1780911039000,-495.12409552,0.00010293,7]
[424446857,1780911039000,-864.0,0.00012701,2]
[424446848,1780911039000,-250.0,0.00011426,2]
[424447143,1780911041000,-60.35911443,0.00013754,2]
[424447130,1780911041000,-4262.89999999,0.00013754,2]
[424447328,1780911043000,-152.0,0.0001139,7]
[424447330,1780911043000,-11849.07812334,0.00013754,2]
[424447329,1780911043000,-152.0,0.0001139,7]
[424447393,1780911046000,-15086.75165521,0.00013754,2]
[424447394,1780911046000,-3845.32865777,0.00013754,2]
[424447395,1780911091000,-2305.70105964,0.00010186,2]
[424447400,1780911291000,-303.93192851,0.00010083,2]
[424447401,1780911344000,-500.0,0.00010083,2]
[424447402,1780911368000,194.11573488,0.00024628,120]
[424447405,1780911398000,-500.0,0.00010083,2]
[424447406,1780911451000,-619.3326771,0.00010084,2]
[424447407,1780911463000,-619.3326771,0.00010084,2]
[424447408,1780911474000,-341.1899786,0.00010084,2]
[424447409,1780911486000,-341.1899786,0.00010084,2]
[424447410,1780911501000,-1000.0,0.00010084,2]
[424447411,1780911512000,-1000.0,0.00010084,2]
[424447412,1780911531000,333.3333333,0.00023287,120]
[424447415,1780911828000,-500.0,0.00010387,2]
[424447417,1780911923000,-340.97212337,0.00010492,2]
[424447416,1780911923000,-685.68023718,0.00010492,2]
[424447426,1780911923000,-685.68023718,0.00010492,2]
[424447419,1780911923000,-685.68023718,0.00010492,2]
[424447420,1780911923000,-685.68023718,0.00010492,2]
[424447421,1780911923000,-685.68023718,0.00010492,2]
[424447422,1780911923000,-685.68023718,0.00010492,2]
[424447424,1780911923000,-685.68023718,0.00010492,2]
[424447423,1780911923000,-685.68023718,0.00010492,2]
[424447427,1780911923000,-685.68023718,0.00010492,2]
[424447418,1780911923000,-685.68023718,0.00010492,2]
[424447428,1780911923000,-685.68023718,0.00010492,2]
[424447437,1780911923000,-685.68023718,0.00010492,2]
[424447435,1780911923000,-685.68023718,0.00010492,2]
[424447436,1780911923000,-685.68023718,0.00010492,2]
[424447433,1780911923000,-685.68023718,0.00010492,2]
[424447425,1780911923000,-685.68023718,0.00010492,2]
[424447430,1780911923000,-500.0,0.00010492,2]
[424447432,1780911923000,-500.0,0.00010492,2]
[424447431,1780911923000,-685.68023718,0.00010492,2]
[424447429,1780911923000,-196.06807149,0.00010492,2]
[424447434,1780911923000,-685.68023718,0.00010492,2]
[424447459,1780911924000,-300.0,0.00010494,2]
[424447457,1780911924000,-300.0,0.00010494,2]
[424447456,1780911924000,-300.0,0.00010494,2]
[424447455,1780911924000,-300.0,0.00010494,2]
[424447454,1780911924000,-300.0,0.00010494,2]
[424447453,1780911924000,-300.0,0.00010494,2]
[424447450,1780911924000,-5000.0,0.00010493,2]
[424447452,1780911924000,-300.0,0.00010494,2]
[424447451,1780911924000,-300.0,0.00010494,2]
[424447449,1780911924000,-211.892,0.00010493,2]
[424447448,1780911924000,-189.27926138,0.00010493,2]
[424447446,1780911924000,-754.24826091,0.00010492,2]
[424447447,1780911924000,-483.82064544,0.00010492,2]
[424447458,1780911924000,-300.0,0.00010494,2]
[424447441,1780911924000,-754.24826091,0.00010492,2]
[424447440,1780911924000,-754.24826091,0.00010492,2]
[424447442,1780911924000,-754.24826091,0.00010492,2]
[424447443,1780911924000,-754.24826091,0.00010492,2]
[424447439,1780911924000,-754.24826091,0.00010492,2]
[424447438,1780911924000,-754.24826091,0.00010492,2]
[424447445,1780911924000,-754.24826091,0.00010492,2]
[424447444,1780911924000,-754.24826091,0.00010492,2]
[424447460,1780911924000,-300.0,0.00010494,2]
[424447461,1780911924000,-300.0,0.00010494,2]
[424447481,1780911924000,-1000.0,0.00013967,2]
[424447483,1780911924000,-500.0,0.00014044,2]
[424447482,1780911924000,-15387.01679541,0.00014,2]
[424447480,1780911924000,-152.0,0.00013842,2]
[424447478,1780911924000,-500.0,0.00013341,2]
[424447462,1780911924000,-300.0,0.00010494,2]
[424447476,1780911924000,-716.19293205,0.00013194,3]
[424447477,1780911924000,-207.65300594,0.00013194,3]
[424447475,1780911924000,-1057.6,0.00012859,2]
[424447473,1780911924000,-1057.57,0.00012859,2]
[424447479,1780911924000,-24814.1491393,0.0001338,2]
[424447472,1780911924000,-1057.57,0.00012859,2]
[424447471,1780911924000,-864.0,0.00012697,2]
[424447470,1780911924000,-221.2609568,0.00011858,2]
[424447469,1780911924000,-720.0,0.00011543,2]
[424447468,1780911924000,-152.0,0.00011393,7]
[424447467,1780911924000,-152.0,0.00011393,7]
[424447466,1780911924000,-600.0,0.00010494,2]
[424447465,1780911924000,-300.0,0.00010494,2]
[424447463,1780911924000,-300.0,0.00010494,2]
[424447464,1780911924000,-300.0,0.00010494,2]
[424447474,1780911924000,-1057.57,0.00012859,2]
[424447493,1780911925000,-296.95155179,0.00014839,2]
[424447490,1780911925000,-368.18303524,0.00014569,2]
[424447489,1780911925000,-176.385527,0.0001455,2]
[424447488,1780911925000,-152.0,0.00014533,2]
[424447494,1780911925000,-151.0,0.000149,2]
[424447487,1780911925000,-400.08880501,0.00014282,2]
[424447485,1780911925000,-224.27400481,0.00014282,2]
[424447484,1780911925000,-254.61393159,0.00014047,2]
[424447486,1780911925000,-256.31314835,0.00014282,2]
[424447492,1780911925000,-5381.14012029,0.000148,2]
[424447491,1780911925000,-458.29047031,0.00014746,2]
[424447496,1780911925000,-500.0,0.000149,2]
[424447504,1780911925000,-1416.0,0.00014977,2]
[424447502,1780911925000,-186.134,0.00014977,2]
[424447503,1780911925000,-444.0,0.00014977,2]
[424447501,1780911925000,-744.0,0.00014977,2]
[424447495,1780911925000,-500.0,0.000149,2]
[424447499,1780911925000,-3625.0,0.00014977,2]
[424447497,1780911925000,-799.823,0.000149,2]
[424447498,1780911925000,-186.64,0.00014964,2]
[424447500,1780911925000,-2208.0,0.00014977,2]
[424447505,1780911925000,-2.068857,0.00015,2]
[424447510,1780911995000,-164.86896061,0.00010386,2]
[424447512,1780911995000,-342.43916467,0.00014282,2]
[424447516,1780911995000,-238.68048636,0.00014999,2]
[424447514,1780911995000,-611.49850834,0.00014282,2]
[424447511,1780911995000,-5000.0,0.00010387,2]
[424447513,1780911995000,-391.35904534,0.00014282,2]
[424447515,1780911995000,-500.0,0.00014999,2]
[424447518,1780911995000,-500.0,0.00014999,2]
[424447520,1780911995000,-500.0,0.00014999,2]
[424447519,1780911995000,-500.0,0.00014999,2]
[424447522,1780911995000,-500.0,0.00014999,2]
[424447523,1780911995000,-500.0,0.00014999,2]
[424447524,1780911995000,-500.0,0.00014999,2]
[424447525,1780911995000,-500.0,0.00014999,2]
[424447521,1780911995000,-500.0,0.00014999,2]
[424447517,1780911995000,-500.0,0.00014999,2]
[424447530,1780911996000,-500.0,0.00014999,2]
[424447526,1780911996000,-331.26353029,0.00014999,2]
[424447527,1780911996000,-500.0,0.00014999,2]
[424447529,1780911996000,-500.0,0.00014999,2]
[424447531,1780911996000,-500.0,0.00014999,2]
[424447532,1780911996000,-500.0,0.00014999,2]
[424447528,1780911996000,-500.0,0.00014999,2]
[424447534,1780911996000,-500.0,0.00014999,2]
[424447533,1780911996000,-500.0,0.00014999,2]
[424447535,1780911996000,-83919.89030439,0.00015,2]
[424447835,1780912239000,-1640597.43649765,0.00014933,2]
[424447818,1780912239000,-366.59312419,0.00014282,2]
[424447807,1780912239000,-152.0,0.00011388,7]
[424447816,1780912239000,-203.86671349,0.00014282,2]
[424447809,1780912239000,-152.0,0.00011388,7]
[424447813,1780912239000,-5000.0,0.00013903,2]
[424447814,1780912239000,-500.0,0.00014044,2]
[424447811,1780912239000,-152.0,0.00011835,2]
[424447824,1780912239000,-815.80898025,0.00014282,2]
[424447826,1780912239000,-1274.70153164,0.00014282,2]
[424447831,1780912239000,-1615.4782811,0.00014714,2]
[424447830,1780912239000,-1000.0,0.00014559,2]
[424447828,1780912239000,-1835.57020556,0.00014282,2]
[424447833,1780912239000,-4843.02610827,0.00014898,2]
[424447822,1780912239000,-458.89255139,0.00014282,2]
[424447820,1780912239000,-254.94030633,0.00014282,2]
[424447964,1780912241000,-267.77939956,0.00014933,2]
[424447975,1780912244000,-5000.0,0.00014784,2]
[424447976,1780912244000,-31766.81747556,0.00014933,2]
[424447982,1780912246000,-3845.3327346,0.00014933,2]
[424447986,1780912247000,-500.0,0.00014998,2]
[424448013,1780912247000,-444.0,0.00015101,2]
[424448015,1780912247000,-186.134,0.00015101,2]
[424448022,1780912247000,-300.0,0.00015299,2]
[424448024,1780912247000,-300.0,0.00015299,2]
[424448025,1780912247000,-300.0,0.00015299,2]
[424448014,1780912247000,-747.599,0.00015101,2]
[424448016,1780912247000,-150.0,0.00015177,2]
[424448017,1780912247000,-150.55,0.00015177,2]
[424448020,1780912247000,-501.5000698,0.0001528,2]
[424448023,1780912247000,-300.0,0.00015299,2]
[424448018,1780912247000,-150.0,0.00015177,2]
[424448012,1780912247000,-2208.0,0.00015101,2]
[424448021,1780912247000,-300.0,0.00015299,2]
[424448026,1780912247000,-300.0,0.00015299,2]
[424448028,1780912247000,-300.0,0.00015299,2]
[424448029,1780912247000,-300.0,0.00015299,2]
[424448030,1780912247000,-300.0,0.00015299,2]
[424448027,1780912247000,-300.0,0.00015299,2]
[424448033,1780912247000,-300.0,0.00015299,2]
[424448031,1780912247000,-300.0,0.00015299,2]
[424448032,1780912247000,-300.0,0.00015299,2]
[424448037,1780912247000,-176.385527,0.00015504,2]
[424448034,1780912247000,-300.0,0.00015299,2]
[424448035,1780912247000,-300.0,0.00015299,2]
[424448019,1780912247000,-150.0,0.00015177,2]
[424447984,1780912247000,-500.0,0.00014998,2]
[424448005,1780912247000,-500.0,0.00014998,2]
[424448003,1780912247000,-500.0,0.00014998,2]
[424447983,1780912247000,-23522.63389263,0.00014933,2]
[424447987,1780912247000,-500.0,0.00014998,2]
[424447985,1780912247000,-167.07634046,0.00014998,2]
[424447988,1780912247000,-500.0,0.00014998,2]
[424447989,1780912247000,-500.0,0.00014998,2]
[424447991,1780912247000,-500.0,0.00014998,2]
[424447990,1780912247000,-500.0,0.00014998,2]
[424447993,1780912247000,-500.0,0.00014998,2]
[424447992,1780912247000,-500.0,0.00014998,2]
[424447999,1780912247000,-500.0,0.00014998,2]
[424448000,1780912247000,-500.0,0.00014998,2]
[424448010,1780912247000,-296.95155179,0.00015,2]
[424447994,1780912247000,-500.0,0.00014998,2]
[424447997,1780912247000,-500.0,0.00014998,2]
[424447995,1780912247000,-500.0,0.00014998,2]
[424447998,1780912247000,-500.0,0.00014998,2]
[424448001,1780912247000,-500.0,0.00014998,2]
[424448002,1780912247000,-500.0,0.00014998,2]
[424448006,1780912247000,-500.0,0.00014998,2]
[424448007,1780912247000,-500.0,0.00014998,2]
[424448011,1780912247000,-1838.0,0.00015101,2]
[424448008,1780912247000,-309.56534136,0.00014998,2]
[424448004,1780912247000,-500.0,0.00014998,2]
[424448009,1780912247000,-40050.1640765,0.00015,2]
[424447996,1780912247000,-500.0,0.00014998,2]
[424448038,1780912247000,-795.0,0.000157,2]
[424448036,1780912247000,-600.0,0.00015299,2]
[424448045,1780912247000,-500.0,0.00016438,2]
[424448067,1780912247000,-500.0,0.00016438,2]
[424448070,1780912247000,-500.0,0.00016438,2]
[424448069,1780912247000,-500.0,0.00016438,2]
[424448073,1780912247000,-500.0,0.00016438,2]
[424448075,1780912247000,-528.86,0.00016438,2]
[424448074,1780912247000,-500.0,0.00016438,2]
[424448084,1780912247000,-500.0,0.00016438,2]
[424448083,1780912247000,-500.0,0.00016438,2]
[424448085,1780912247000,-500.0,0.00016438,2]
[424448082,1780912247000,-500.0,0.00016438,2]
[424448086,1780912247000,-500.90313386,0.00016438,2]
[424448076,1780912247000,-500.0,0.00016438,2]
[424448077,1780912247000,-500.0,0.00016438,2]
[424448080,1780912247000,-484.99925721,0.00016438,2]
[424448079,1780912247000,-533.23,0.00016438,2]
[424448081,1780912247000,-500.0,0.00016438,2]